lending/lending_fUSD_20260119
["ID","MTS","AMOUNT","RATE_DAILY","PERIOD"]
[402734496,1768863044151,-151.0,0.00021465,2]
[402734497,1768863044160,-293.492155,0.00021465,2]
[402734498,1768863044170,-293.492155,0.00021465,2]
[402734499,1768863044179,-293.492155,0.00021465,2]
[402734500,1768863044188,-293.492155,0.00021465,2]
[402734501,1768863044198,-170.326445,0.00021465,2]
[402734502,1768863044207,-170.326445,0.00021465,2]
[402734503,1768863044216,-170.326445,0.00021465,2]
[402734504,1768863044226,-170.326445,0.00021465,2]
[402734505,1768863044235,-551.67175,0.00021465,2]
[402734506,1768863044244,-551.67175,0.00021465,2]
[402734507,1768863044253,-551.67175,0.00021465,2]
[402734508,1768863044262,-551.67175,0.00021465,2]
[402734509,1768863044271,-3065.0049062,0.00021508,2]
[402734510,1768863044281,-20578.2867383,0.00021508,2]
[402734511,1768863044290,-160.81,0.00021541,2]
[402734512,1768863044299,-1787.6,0.00021565,2]
[402734513,1768863044308,-155.0,0.00021599,2]
[402734514,1768863044317,-450.0,0.00021616,2]
[402734515,1768863044326,-157.65,0.00021651,2]
[402734516,1768863044336,-500.0,0.00021699,2]
[402734517,1768863044345,-500.0,0.00021699,2]
[402734518,1768863044354,-150.0,0.00021699,2]
[402734519,1768863044363,-150.0,0.00021699,2]
[402734520,1768863044373,-153.50418531,0.00021699,2]
[402734521,1768863044383,-500.0,0.00021699,2]
[402734522,1768863044392,-500.0,0.00021699,2]
[402734523,1768863044402,-500.0,0.00021699,2]
[402734524,1768863044412,-150.0,0.00021699,2]
[402734525,1768863044421,-150.0,0.00021699,2]
[402734526,1768863044431,-500.0,0.00021699,2]
[402734527,1768863044440,-150.0,0.00021699,2]
[402734528,1768863044450,-500.0,0.00021699,2]
[402734529,1768863044461,-500.0,0.00021699,2]
[402734530,1768863044471,-500.0,0.00021699,2]
[402734531,1768863044481,-150.0,0.00021699,2]
[402734532,1768863044490,-500.0,0.00021699,2]
[402734533,1768863044499,-150.0,0.00021699,2]
[402734534,1768863044509,-500.0,0.00021699,2]
[402734535,1768863044518,-150.0,0.00021699,2]
[402734536,1768863044528,-150.0,0.00021699,2]
[402734537,1768863044537,-150.0,0.00021699,2]
[402734538,1768863044546,-500.0,0.00021754,2]
[402734539,1768863044555,-500.0,0.00021754,2]
[402734540,1768863044564,-150.0,0.00021754,2]
[402734541,1768863044574,-150.0,0.00021754,2]
[402734542,1768863044583,-500.0,0.00021754,2]
[402734543,1768863044592,-500.0,0.00021754,2]
[402734544,1768863044602,-500.0,0.00021754,2]
[402734545,1768863044611,-150.0,0.00021754,2]
[402734546,1768863044620,-150.0,0.00021754,2]
[402734547,1768863044630,-500.0,0.00021754,2]
[402734548,1768863044639,-500.0,0.00021754,2]
[402734549,1768863044653,-500.0,0.00021754,2]
[402734550,1768863044665,-150.77075567,0.00021754,2]
[402734551,1768863044680,-500.0,0.00021754,2]
[402734552,1768863044691,-500.0,0.00021754,2]
[402734553,1768863044700,-150.0,0.00021754,2]
[402734554,1768863044720,-500.0,0.00021754,2]
[402734555,1768863044729,-150.0,0.00021754,2]
[402734556,1768863044741,-150.0,0.00021754,2]
[402734557,1768863044750,-2000.0,0.0002176,2]
[402734558,1768863044759,-2000.0,0.0002176,2]
[402734559,1768863044768,-2000.0,0.0002176,2]
[402734560,1768863044779,-559.64,0.00021777,2]
[402734561,1768863044788,-761.74,0.00021778,2]
[402734562,1768863044797,-500.0,0.00021809,2]
[402734563,1768863044809,-500.0,0.00021809,2]
[402734564,1768863044818,-200.0,0.00021809,2]
[402734565,1768863044827,-200.0,0.00021809,2]
[402734566,1768863044836,-500.0,0.00021809,2]
[402734567,1768863044845,-500.0,0.00021809,2]
[402734568,1768863044854,-500.0,0.00021809,2]
[402734569,1768863044863,-150.0,0.00021809,2]
[402734570,1768863044872,-209.71778513,0.00021809,2]
[402734571,1768863044881,-500.0,0.00021809,2]
[402734572,1768863044890,-325.70575154,0.00021809,2]
[402734573,1768863044902,-500.0,0.00021809,2]
[402734574,1768863044912,-384.15160057,0.00021809,2]
[402734575,1768863044922,-500.0,0.00021809,2]
[402734576,1768863044932,-150.0,0.00021809,2]
[402734577,1768863044943,-500.0,0.00021809,2]
[402734578,1768863044952,-150.0,0.00021809,2]
[402734579,1768863044963,-150.0,0.00021809,2]
[402734580,1768863044972,-150.0,0.00021836,2]
[402734581,1768863044982,-1051.62,0.00021836,2]
[402734582,1768863044991,-500.0,0.00021863,2]
[402734583,1768863045001,-500.0,0.00021863,2]
[402734584,1768863045010,-500.0,0.00021863,2]
[402734585,1768863045019,-500.0,0.00021863,2]
[402734586,1768863045030,-500.0,0.00021863,2]
[402734587,1768863045040,-150.0,0.00021863,2]
[402734588,1768863045049,-500.0,0.00021863,2]
[402734589,1768863045061,-500.0,0.00021863,2]
[402734590,1768863045070,-500.0,0.00021863,2]
[402734591,1768863045080,-250.0,0.00021863,2]
[402734592,1768863045090,-500.0,0.00021863,2]
[402734593,1768863045100,-250.0,0.00021863,2]
[402734594,1768863045109,-200.0,0.000219,2]
[402734595,1768863045118,-172.511044,0.00021918,2]
[402734596,1768863045127,-172.511044,0.00021918,2]
[402734597,1768863045137,-172.511044,0.00021918,2]
[402734598,1768863045146,-172.511044,0.00021918,2]
[402734599,1768863045155,-172.511044,0.00021918,2]
[402734600,1768863045164,-172.511044,0.00021918,2]
[402734601,1768863045174,-172.511044,0.00021918,2]
[402734602,1768863045183,-172.511044,0.00021918,2]
[402734603,1768863045192,-151.0,0.00021918,2]
[402734604,1768863045202,-151.0,0.00021918,2]
[402734605,1768863045211,-197.106012,0.00021918,2]
[402734606,1768863045220,-151.0,0.00021918,2]
[402734608,1768863045229,-151.0,0.00021918,2]
[402734610,1768863045239,-1000.0,0.00021918,2]
[402734612,1768863045248,-1000.0,0.00021918,2]
[402734613,1768863045257,-1000.0,0.00021918,2]
[402734614,1768863045267,-1000.0,0.00021918,2]
[402734615,1768863045276,-1000.0,0.00021918,2]
[402734616,1768863045285,-1000.0,0.00021918,2]
[402734617,1768863045294,-1000.0,0.00021918,2]
[402734618,1768863045303,-1000.0,0.00021918,2]
[402734619,1768863045312,-1000.0,0.00021918,2]
[402734620,1768863045321,-1000.0,0.00021918,2]
[402734621,1768863045330,-1000.0,0.00021918,2]
[402734622,1768863045340,-1000.0,0.00021918,2]
[402734623,1768863045349,-1000.0,0.00021918,2]
[402734624,1768863045358,-1000.0,0.00021918,2]
[402734625,1768863045367,-1000.0,0.00021918,2]
[402734626,1768863045376,-1000.0,0.00021918,2]
[402734627,1768863045385,-500.0,0.00021918,2]
[402734628,1768863045394,-500.0,0.00021918,2]
[402734629,1768863045404,-500.0,0.00021918,2]
[402734630,1768863045412,-500.0,0.00021918,2]
[402734631,1768863045422,-500.0,0.00021918,2]
[402734632,1768863045432,-150.0,0.00021918,2]
[402734633,1768863045440,-500.0,0.00021918,2]
[402734634,1768863045450,-500.0,0.00021918,2]
[402734635,1768863045459,-500.0,0.00021918,2]
[402734636,1768863045468,-500.0,0.00021918,2]
[402734637,1768863045477,-450.0,0.00021973,2]
[402734638,1768863045487,-500.0,0.00021973,2]
[402734639,1768863045496,-288.25064297,0.00021973,2]
[402734640,1768863045505,-500.0,0.00021973,2]
[402734641,1768863045514,-584.0,0.00021973,2]
[402734642,1768863045523,-250.0,0.00021973,2]
[402734643,1768863045533,-500.0,0.00021973,2]
[402734644,1768863045542,-500.0,0.0002198,10]
[402734645,1768863045551,-500.0,0.0002198,2]
[402734646,1768863045561,-505.04380881,0.0002198,10]
[402734647,1768863045570,-500.0,0.0002198,2]
[402734648,1768863045579,-500.0,0.0002198,2]
[402734649,1768863045588,-551.12675958,0.0002198,10]
[402734650,1768863045598,-1117.67500683,0.0002198,2]
[402734651,1768863045607,-1005.53682034,0.00021981,2]
[402734652,1768863045616,-154.0,0.00021981,2]
[402734653,1768863045626,-154.0,0.00021981,2]
[402734654,1768863045635,-151.0,0.00021981,2]
[402734655,1768863045645,-154.0,0.00021981,2]
[402734656,1768863045655,-151.0,0.00021981,2]
[402734657,1768863045665,-151.0,0.00021981,2]
[402734658,1768863045674,-151.0,0.00021981,2]
[402734659,1768863045683,-151.0,0.00021981,2]
[402734660,1768863045692,-154.0,0.00021981,2]
[402734661,1768863045702,-151.0,0.00021981,2]
[402734662,1768863045711,-151.0,0.00021981,2]
[402734663,1768863045720,-151.0,0.00021981,2]
[402734664,1768863045729,-151.0,0.00021981,2]
[402734666,1768863045741,-151.0,0.00021981,2]
[402734668,1768863045750,-151.0,0.00021981,2]
[402734669,1768863045759,-151.0,0.00021981,2]
[402734670,1768863045769,-151.0,0.00021981,2]
[402734671,1768863045779,-151.0,0.00021981,2]
[402734672,1768863045788,-151.0,0.00021981,2]
[402734673,1768863045798,-151.0,0.00021981,2]
[402734674,1768863045807,-151.0,0.00021981,2]
[402734675,1768863045818,-151.0,0.00021981,2]
[402734676,1768863045827,-154.0,0.00021981,2]
[402734677,1768863045836,-154.0,0.00021981,2]
[402734678,1768863045845,-154.0,0.00021981,2]
[402734679,1768863045855,-154.0,0.00021981,2]
[402734680,1768863045864,-154.0,0.00021981,2]
[402734681,1768863045873,-154.0,0.00021981,2]
[402734682,1768863045882,-152.0,0.00021981,2]
[402734683,1768863045891,-1264.0,0.00021981,2]
[402734684,1768863045900,-1264.0,0.00021981,2]
[402734685,1768863045910,-151.0,0.00021981,2]
[402734686,1768863045919,-151.0,0.00021981,2]
[402734687,1768863045928,-151.0,0.00021981,2]
[402734688,1768863045937,-151.0,0.00021981,2]
[402734689,1768863045946,-1264.0,0.00021981,2]
[402734690,1768863045956,-185.3371496,0.00021981,2]
[402734691,1768863045965,-154.0,0.00021981,2]
[402734692,1768863045974,-154.0,0.00021981,2]
[402734693,1768863045984,-1264.0,0.00021981,2]
[402734695,1768863045993,-151.0,0.00021981,2]
[402734697,1768863046002,-154.0,0.00021981,2]
[402734698,1768863046011,-1394.75034523,0.00021981,2]
[402734699,1768863046020,-151.0,0.00021981,2]
[402734700,1768863046030,-151.0,0.00021981,2]
[402734701,1768863046042,-151.0,0.00021981,2]
[402734702,1768863046051,-163.41258495,0.00021981,2]
[402734703,1768863046060,-154.0,0.00021981,2]
[402734704,1768863046069,-154.0,0.00021981,2]
[402734705,1768863046079,-154.0,0.00021981,2]
[402734706,1768863046088,-1000.0,0.00021981,2]
[402734707,1768863046097,-1000.0,0.00021981,2]
[402734708,1768863046106,-1000.0,0.00021981,2]
[402734709,1768863046115,-1000.0,0.00021981,2]
[402734710,1768863046123,-1000.0,0.00021981,2]
[402734711,1768863046132,-1000.0,0.00021981,2]
[402734712,1768863046142,-1000.0,0.00021981,2]
[402734713,1768863046151,-1000.0,0.00021981,2]
[402734714,1768863046161,-1000.0,0.00021981,2]
[402734715,1768863046404,-1000.0,0.00021981,2]
[402734716,1768863046442,-154.0,0.00021981,2]
[402734717,1768863046451,-1000.0,0.00021981,2]
[402734718,1768863046461,-1000.0,0.00021981,2]
[402734719,1768863046471,-1000.0,0.00021981,2]
[402734720,1768863046480,-1000.0,0.00021981,2]
[402734721,1768863046490,-225.96,0.00021981,2]
[402734722,1768863046500,-154.0,0.00021981,2]
[402734723,1768863046509,-154.0,0.00021981,2]
[402734724,1768863046519,-154.0,0.00021981,2]
[402734725,1768863046529,-154.0,0.00021981,2]
[402734726,1768863046538,-2000.0,0.00021981,2]
[402734727,1768863046548,-2000.0,0.00021981,2]
[402734728,1768863046558,-2000.0,0.00021981,2]
[402734729,1768863046568,-151.0,0.00021997,2]
[402734730,1768863046578,-12674.56,0.00022,7]
[402734731,1768863046588,-1479.14150735,0.00022,30]
[402734732,1768863046598,-129645.23119539,0.00022,2]
[402734733,1768863046668,-999.99999983,0.00022,2]
[402734734,1768863047996,-604.792551,0.00022,2]
[402734735,1768863048114,-3965.76576668,0.00022,2]
[402734736,1768863048132,-26288.477687,0.00022,2]
[402734737,1768863048153,-5800.0,0.00022,2]
[402734738,1768863048171,-1163.69555954,0.00022,2]
[402734739,1768863048187,-10873.6298,0.00022,2]
[402734740,1768863048309,-345.5261616,0.00022,2]
[402734741,1768863050854,-151.0,0.0001775,2]
[402734742,1768863050865,-151.0,0.0001775,2]
[402734743,1768863050875,-500.0,0.00020104,2]
[402734744,1768863050886,-32863.87994268,0.00022,2]
[402734745,1768863050898,-32716.96241937,0.00022,2]
[402734758,1768864111581,3000.0,0.00027397,120]
[402734759,1768864124280,1000.0,0.00027397,120]
[402734760,1768864136015,1000.0,0.00027397,120]
[402734761,1768864170302,600.0,0.00027397,120]
[402734762,1768864171793,600.0,0.00027397,120]
[402734763,1768864175409,600.0,0.00027397,120]
[402734812,1768864232865,-500.0,0.00015592,2]
[402734813,1768864232875,-422.48,0.00015592,2]
[402734814,1768864232888,-77.52,0.00015592,2]
[402734815,1768864232898,-175.95,0.00015592,2]
[402734816,1768864232908,-300.0,0.00015868,2]
[402734817,1768864232918,-1200.0,0.00015868,2]
[402734818,1768864232928,-300.0,0.00015868,2]
[402734819,1768864232938,-7996.94232498,0.00015868,2]
[402734820,1768864232948,-500.0,0.00015973,2]
[402734821,1768864232958,-500.0,0.00015973,2]
[402734822,1768864232968,-500.0,0.00015973,2]
[402734823,1768864232977,-500.0,0.00015973,2]
[402734824,1768864232987,-500.0,0.00015973,2]
[402734825,1768864232997,-500.0,0.00015973,2]
[402734826,1768864233007,-500.0,0.00015973,2]
[402734827,1768864233017,-500.0,0.00015973,2]
[402734828,1768864233027,-500.63366997,0.00015973,2]
[402734829,1768864233037,-500.0,0.00015973,2]
[402734830,1768864233047,-491.33711557,0.00016438,2]
[402734831,1768864233070,-508.66288443,0.00016438,2]
[402734832,1768864233079,-500.0,0.00016438,2]
[402734833,1768864233089,-500.0,0.00016438,2]
[402734834,1768864233099,-500.0,0.00016438,2]
[402734835,1768864233108,-500.0,0.00016438,2]
[402734836,1768864233117,-500.0,0.00016438,2]
[402734837,1768864233127,-69.93978838,0.00016438,2]
[402734838,1768864233177,-430.06021162,0.00016438,2]
[402734839,1768864233187,-430.92275995,0.00016438,2]
[402734840,1768864233196,-569.07724005,0.00016438,2]
[402734841,1768864233206,-500.0,0.00016438,2]
[402734842,1768864233215,-500.0,0.00016438,2]
[402734843,1768864233224,-500.0,0.00016438,2]
[402734844,1768864233233,-500.0,0.00016438,2]
[402734845,1768864233244,-500.0,0.00016438,2]
[402734846,1768864233253,-500.0,0.00016438,2]
[402734847,1768864233262,-500.0,0.00016438,2]
[402734848,1768864233272,-500.0,0.00016438,2]
[402734849,1768864233284,-500.0,0.00016521,2]
[402734850,1768864233294,-500.0,0.00016521,2]
[402734851,1768864233303,-500.0,0.00016521,2]
[402734852,1768864233314,-500.0,0.00016521,2]
[402734853,1768864233323,-500.0,0.00016521,2]
[402734854,1768864233331,-500.0,0.00016521,2]
[402734855,1768864233340,-500.0,0.00016521,2]
[402734856,1768864233349,-241.36183738,0.00016521,2]
[402734857,1768864233358,-151.0,0.00016942,2]
[402734858,1768864233367,-151.0,0.00016942,2]
[402734859,1768864233377,-5209.64448779,0.00017201,2]
[402734860,1768864233387,-2787.29783719,0.00017201,2]
[402734861,1768864233396,-166.66,0.00017203,2]
[402734862,1768864233405,-420.0,0.00017351,2]
[402734863,1768864233413,-420.0,0.00017351,2]
[402734864,1768864233422,-1680.0,0.00017439,2]
[402734865,1768864233431,-2424.12434952,0.00017441,2]
[402734866,1768864233441,-318.0,0.00017441,2]
[402734869,1768864237634,-500.0,0.00016438,2]
[402734870,1768864237646,-1159.87565048,0.00017441,2]
[402734871,1768864237656,-166.66,0.00017565,2]
[402734872,1768864237665,-835.0,0.0001759,2]
[402734873,1768864237675,-500.0,0.00017685,2]
[402734874,1768864237685,-304.3,0.00017685,2]
[402734875,1768864237695,-452.80833832,0.00017794,2]
[402734876,1768864237723,-443.21634454,0.00017794,2]
[402734877,1768864237736,-252.02371514,0.00017794,2]
[402734878,1768864237754,-696.051602,0.00017794,2]
[402734879,1768864237764,-168.0,0.00017845,2]
[402734880,1768864237774,-745.82,0.00017909,2]
[402734881,1768864237783,-166.66,0.00017927,2]
[402734882,1768864237793,-168.0,0.00017938,2]
[402734883,1768864237802,-500.0,0.00017973,2]
[402734884,1768864237811,-619.61189546,0.00017973,2]
[402734885,1768864237821,-3002.22,0.00017987,2]
[402734886,1768864237831,-150.0,0.00017992,2]
[402734887,1768864237840,-1115.54,0.00018,7]
[402734888,1768864237850,-168.0,0.00018011,2]
[402734889,1768864237860,-168.0,0.00018044,2]
[402734890,1768864237870,-168.0,0.00018051,2]
[402734891,1768864237879,-200.0,0.00018067,2]
[402734892,1768864237888,-150.0,0.00018119,2]
[402734894,1768864237898,-496.28,0.00018129,2]
[402734896,1768864237908,-168.0,0.00018161,2]
[402734898,1768864237917,-168.0,0.000182,2]
[402734899,1768864237926,-20.32885842,0.00018233,2]
[402734900,1768864237937,-140.69034362,0.00018233,2]
[402734901,1768864237947,-164.54,0.0001824,2]
[402734902,1768864237956,-166.66,0.00018289,2]
[402734903,1768864237966,-168.0,0.00018314,2]
[402734904,1768864237975,-168.0,0.00018344,2]
[402734905,1768864237985,-168.0,0.00018393,2]
[402734906,1768864237994,-163.0,0.00018443,2]
[402734907,1768864238005,-835.0,0.00018443,2]
[402734909,1768864238014,-168.0,0.00018458,2]
[402734910,1768864238024,-168.0,0.0001848,2]
[402734911,1768864238034,-1000.0,0.00018521,2]
[402734912,1768864238044,-835.0,0.0001853,2]
[402734913,1768864238055,-825.39630448,0.00018534,4]
[402734914,1768864238067,-3635.99755214,0.00018534,4]
[402734915,1768864238079,-5104.93693335,0.00018534,4]
[402734916,1768864238089,-1844.1,0.00018549,2]
[402734917,1768864238099,-168.0,0.00018574,2]
[402734918,1768864238110,-745.82,0.00018581,2]
[402734919,1768864238120,-166.66,0.00018652,2]
[402734920,1768864238131,-168.0,0.00018758,2]
[402734921,1768864238141,-168.0,0.00018799,2]
[402734922,1768864238151,-168.0,0.00018883,2]
[402734923,1768864238161,-1000.0,0.00018926,2]
[402734924,1768864238171,-168.0,0.00018947,2]
[402734925,1768864238181,-322.6107,0.00018962,2]
[402734926,1768864238190,-646.65982734,0.00018962,2]
[402734928,1768864238200,-187.78006525,0.00018962,2]
[402734929,1768864238210,-578.20924308,0.00018962,2]
[402734930,1768864238219,-2230.08303239,0.00018962,2]
[402734931,1768864238232,-1063.5696326,0.00018962,2]
[402734932,1768864238247,-1150.34733501,0.00018962,2]
[402734933,1768864238259,-620.0,0.00018962,2]
[402734934,1768864238268,-151.0,0.00018962,2]
[402734935,1768864238279,-151.0,0.00018962,2]
[402734936,1768864238289,-151.0,0.00018962,2]
[402734937,1768864238299,-151.0,0.00018962,2]
[402734938,1768864238310,-151.0,0.00018962,2]
[402734939,1768864238320,-151.0,0.00018962,2]
[402734940,1768864238330,-151.0,0.00018962,2]
[402734941,1768864238339,-151.0,0.00018962,2]
[402734942,1768864238349,-151.0,0.00018962,2]
[402734943,1768864238358,-151.0,0.00018962,2]
[402734944,1768864238369,-151.0,0.00018962,2]
[402734945,1768864238379,-514.84070869,0.00018962,2]
[402734946,1768864238388,-151.0,0.00018962,2]
[402734947,1768864238398,-151.0,0.00018962,2]
[402734948,1768864238407,-151.0,0.00018962,2]
[402734949,1768864238417,-182.33,0.00018962,2]
[402734950,1768864238427,-257.0,0.00018973,2]
[402734951,1768864238437,-587.0,0.00018973,2]
[402734952,1768864238446,-166.66,0.00019014,2]
[402734953,1768864238455,-214.9044405,0.00019068,2]
[402734954,1768864238465,-168.0,0.00019074,2]
[402734955,1768864238474,-168.0,0.00019132,2]
[402734956,1768864238484,-168.0,0.00019142,2]
[402734957,1768864238493,-900.0,0.00019165,2]
[402734958,1768864238504,-1204.11,0.00019178,30]
[402734959,1768864238513,-168.0,0.00019212,2]
[402734960,1768864238522,-168.0,0.00019224,2]
[402734961,1768864238532,-182.33,0.00019236,2]
[402734962,1768864238541,-745.82,0.00019253,2]
[402734963,1768864238551,-1844.1,0.00019304,2]
[402734964,1768864238560,-168.0,0.00019463,2]
[402734965,1768864238570,-505.0,0.00019479,2]
[402734966,1768864238580,-2000.0,0.000195,2]
[402734967,1768864238589,-533.88981491,0.0001951,2]
[402734968,1768864238599,-182.35,0.0001951,2]
[402734969,1768864238609,-150.0,0.00019608,2]
[402734970,1768864238618,-213.0,0.00019608,2]
[402734971,1768864238628,-200.0,0.00019608,2]
[402734972,1768864238637,-150.0,0.00019608,2]
[402734973,1768864238646,-171.292,0.00019608,2]
[402734974,1768864238656,-150.381,0.00019608,2]
[402734975,1768864238665,-297.611,0.00019608,2]
[402734976,1768864238677,-150.193,0.00019608,2]
[402734977,1768864238687,-150.0,0.00019608,2]
[402734978,1768864238696,-150.0,0.00019608,2]
[402734979,1768864238706,-150.044,0.00019608,2]
[402734980,1768864238716,-150.0,0.00019608,2]
[402734981,1768864238725,-518.93074687,0.00019608,2]
[402734982,1768864238738,-96.06925313,0.00019608,2]
[402734983,1768864238747,-1332.0,0.00019608,2]
[402734984,1768864238757,-1407.0,0.00019608,2]
[402734985,1768864238767,-288.35612701,0.00019608,2]
[402734986,1768864238797,-496.28,0.00018177,2]
[402734987,1768864238807,-1971.28,0.00019608,2]
[402734991,1768864239712,-325.70237885,0.00018224,2]
[402734992,1768864239981,-170.57762115,0.00018224,2]
[402734993,1768864239991,-496.28,0.00018272,2]
[402734994,1768864240000,-496.28,0.0001832,2]
[402734995,1768864240014,-496.28,0.00018367,2]
[402734996,1768864240025,-496.28,0.00018415,2]
[402734997,1768864240034,-496.28,0.00018463,2]
[402734998,1768864240044,-496.28,0.00018511,2]
[402734999,1768864240054,-222.97946918,0.00019082,2]
[402735000,1768864240064,-1213.36387299,0.00019608,2]
[402735001,1768864240073,-1268.0,0.00019608,2]
[402735002,1768864240082,-342.0,0.00019608,2]
[402735003,1768864240091,-915.0,0.00019608,2]
[402735004,1768864240101,-1202.0,0.00019608,2]
[402735005,1768864240115,-2440.0,0.00019608,2]
[402735006,1768864240137,-578.623,0.00019608,2]
[402735007,1768864240153,-4826.0,0.00019608,2]
[402735008,1768864240172,-1241.65906417,0.00019913,2]
[402735009,1768864240192,-745.82,0.00019924,2]
[402735010,1768864240208,-16.81687054,0.00019973,2]
[402735012,1768864240318,-133.18312946,0.00019973,2]
[402735013,1768864240334,-150.0,0.0002,2]
[402735015,1768864240351,-1264.0,0.00020014,2]
[402735016,1768864240365,-1264.0,0.00020014,2]
[402735017,1768864240389,-1264.0,0.00020014,2]
[402735018,1768864240404,-1264.0,0.00020014,2]
[402735020,1768864240419,-1264.0,0.00020014,2]
[402735021,1768864240435,-1264.0,0.00020014,2]
[402735022,1768864240451,-1264.0,0.00020014,2]
[402735023,1768864240465,-1264.0,0.00020014,2]
[402735024,1768864240485,-1264.0,0.00020014,2]
[402735025,1768864240500,-1264.0,0.00020014,2]
[402735026,1768864240517,-1264.0,0.00020014,2]
[402735027,1768864240532,-1264.0,0.00020014,2]
[402735028,1768864240548,-1264.0,0.00020014,2]
[402735029,1768864240564,-1264.0,0.00020014,2]
[402735030,1768864240579,-1264.0,0.00020014,2]
[402735031,1768864240595,-1264.0,0.00020014,2]
[402735032,1768864240609,-1264.0,0.00020014,2]
[402735033,1768864240626,-1264.0,0.00020014,2]
[402735034,1768864240641,-1264.0,0.00020014,2]
[402735035,1768864240657,-1264.0,0.00020014,2]
[402735036,1768864240672,-1264.0,0.00020014,2]
[402735037,1768864240688,-1264.0,0.00020014,2]
[402735038,1768864240703,-1264.0,0.00020014,2]
[402735039,1768864240717,-1264.0,0.00020014,2]
[402735040,1768864240732,-1264.0,0.00020014,2]
[402735041,1768864240748,-553.64373807,0.00020058,2]
[402735042,1768864240763,-1844.1,0.00020059,2]
[402735043,1768864240778,-1218.309,0.00020128,2]
[402735044,1768864240793,-200.0,0.00020265,2]
[402735045,1768864240809,-4444.0,0.00020331,2]
[402735046,1768864240825,-219.23124607,0.00020332,2]
[402735047,1768864240840,-152.0,0.00020416,2]
[402735048,1768864240855,-151.0,0.00020416,2]
[402735049,1768864240869,-151.0,0.00020416,2]
[402735050,1768864240886,-151.0,0.00020416,2]
[402735051,1768864240901,-151.0,0.00020416,2]
[402735052,1768864240915,-151.0,0.00020416,2]
[402735053,1768864240930,-151.0,0.00020416,2]
[402735054,1768864240946,-151.0,0.00020416,2]
[402735055,1768864240962,-151.0,0.00020416,2]
[402735056,1768864240977,-151.0,0.00020416,2]
[402735057,1768864240993,-151.0,0.00020416,2]
[402735058,1768864241013,-151.0,0.00020416,2]
[402735059,1768864241030,-151.0,0.00020416,2]
[402735060,1768864241048,-151.0,0.00020416,2]
[402735061,1768864241064,-151.0,0.00020416,2]
[402735062,1768864241081,-151.0,0.00020416,2]
[402735063,1768864241097,-151.0,0.00020416,2]
[402735064,1768864241113,-151.0,0.00020416,2]
[402735065,1768864241128,-151.0,0.00020416,2]
[402735066,1768864241145,-151.0,0.00020416,2]
[402735067,1768864241159,-151.0,0.00020416,2]
[402735068,1768864241174,-151.0,0.00020416,2]
[402735069,1768864241189,-151.0,0.00020416,2]
[402735070,1768864241204,-151.0,0.00020416,2]
[402735071,1768864241219,-185.3371496,0.00020416,2]
[402735072,1768864241234,-250.0,0.00020521,2]
[402735073,1768864241251,-154.07,0.00020548,2]
[402735074,1768864241269,-745.82,0.00020596,2]
[402735075,1768864241285,-250.0,0.00020602,2]